Cogmind - Beta 13 @@@ ROGUE MODE // 2024.07.22 @ 22:24:39 Player: OctagonalPrism Result: Destroyed by S-10 Pest with Light Assault Rifle Performance ------------- Evolutions (0) 0 Regions Visited (2) 400 Robots Destroyed (6) 30 Value Destroyed (118) 118 Prototype IDs (0) 0 Alien Tech Used (0) 0 Bonus (0) 0 TOTAL SCORE: 548 Bonus ------- None Cogmind --------- Core Integrity 0/250 Matter 300/300 Energy 100/100 System Corruption 0% Temperature Cool (0) Movement Core (100) Ox1 Location -10/Mines Parts ------- > --- POWER (1) -------- (None) > --- PROPULSION (2) --- (None) > --- UTILITY (2) ------ Small Storage Unit > --- WEAPON (2) ------- (None) > --- INVENTORY (8) ---- Ion Engine Light Nuclear Core Light Treads Medium Matter Pod (14) ECM Suite Peak State ------------ > --- POWER ------------ Ion Engine > --- PROPULSION ------- Light Treads Light Treads > --- UTILITY ---------- Small Storage Unit Improved Terrain Scanner > --- WEAPON ----------- Small Laser Light Assault Rifle > --- INVENTORY -------- Ion Engine [Rating: 9] Favorites ----------- Power Ion Engine Engine Ion Engine Propulsion Light Treads Treads Light Treads Utility Small Storage Unit Device Improved Terrain Scanner Storage Small Storage Unit Weapon Light Assault Rifle Energy Gun Small Laser Ballistic Gun Light Assault Rifle Ballistic Cannon Light Cannon Build | -11 -10 -10 ------- Run | Yrd Mat Min Slots Evolved . | . . . Power . | . . . Propulsion . | . . . Utility . | . . . Weapon . | . . . Parts Attached 10 | 6 4 . Power 3 | 1 2 . Engine 3 | 1 2 . Core . | . . . Reactor . | . . . Propulsion 2 | 2 . . Treads 2 | 2 . . Leg . | . . . Wheel . | . . . Hover . | . . . Flight . | . . . Utility 2 | 2 . . Device 1 | 1 . . Storage 1 | 1 . . Processor . | . . . Hackware . | . . . Protection . | . . . Artifact . | . . . Weapon 3 | 1 2 . Energy Gun 1 | . 1 . Energy Cannon . | . . . Ballistic Gun 1 | 1 . . Ballistic Cannon 1 | . 1 . Launcher . | . . . Special Weapon . | . . . Impact Weapon . | . . . Slashing Weapon . | . . . Piercing Weapon . | . . . Special Melee Weapon . | . . . Unidentified Prototypes . | . . . Parts Lost 5 | . . 5 Power 1 | . . 1 Propulsion 1 | . . 1 Utility 1 | . . 1 Weapon 2 | . . 2 Highest Loss Streak 5 | . . 5 To Critical Strikes . | . . . Average Slot Usage (%) 91 | . 94 84 Engine 13 | . 14 12 Treads 27 | . 28 23 Device 13 | . 14 11 Storage 14 | . 14 14 Energy Gun 2 | . 3 . Ballistic Gun 13 | . 14 11 Ballistic Cannon 5 | . 4 9 Naked Turns . | . . . Heaviest Build 13 | 12 13 13 Greatest Support 40 | 40 40 40 Greatest Overweight (x) 1 | 1 . 1 Average Overweight (x) . | . . . Largest Inventory Capacity 8 | 8 8 8 Average Capacity 7 | 7 8 8 Most Carried 5 | 1 4 5 Average Carried 2 | . 2 4 Final Capacity 8 | 8 8 8 Final Carried 5 | 1 4 5 Class Distribution -------------------- 100% | Mutant Dominant Class ---------------- Mutant | -10/Materials Mutant | -10/Mines Resources | -11 -10 -10 ----------- Run | Yrd Mat Min Matter Collected 316 | 236 80 . Remotely . | . . . Salvage Created 159 | 22 137 . Parts 19 | 5 14 . Haulers Intercepted . | . . . Recyclers Shooed . | . . . Parts Field Recycled . | . . . Retrieved Matter . | . . . Parts Self-Destructed . | . . . Prevented . | . . . Kills | -11 -10 -10 ------- Run | Yrd Mat Min Combat Hostiles Destroyed 5 | . 5 . Guns 5 | . 5 . Classes Destroyed 3 | 1 2 . Tunneler 1 | 1 . . Swarmer 3 | . 3 . Grunt 2 | . 2 . Best Kill Streak 3 | 1 3 . Combat Bots Only 3 | . 3 . Max Kills in Single Turn 1 | 1 1 . Gunslinging . | . . . Exploded . | . . . Melee . | . . . Uniques/NPCs Destroyed . | . . . Combat | -11 -10 -10 -------- Run | Yrd Mat Min Hostile Shots Fired 50 | . 28 22 Missed 11 | . 6 5 Damage Taken 813 | . 216 597 Core 252 | . 32 220 Absorbed by Shields . | . . . Core Remaining (%) 100 | 100 . . Volleys Fired 27 | 3 23 1 Largest 2 | 1 2 1 Hottest 60 | 20 60 20 Shots Fired 39 | 3 35 1 Gun 39 | 3 35 1 Cannon . | . . . Launcher . | . . . Special . | . . . Kinetic 27 | 3 23 1 Thermal 12 | . 12 . Explosive . | . . . Electromagnetic . | . . . Robot Hit Streak 8 | 3 8 . Robot Miss Streak 4 | . 4 1 Penetration Max . | . . . Secondary Targets . | . . . Shots Hit Robots 24 | 3 21 . Core Hits 12 | 2 10 . Critical Kills . | . . . Critical Parts Destroyed . | . . . Critical Strikes . | . . . Melee Attacks . | . . . Impact . | . . . Slashing . | . . . Piercing . | . . . Sneak Attacks . | . . . Combat Hostiles . | . . . Follow-up Attacks . | . . . Damage Inflicted 219 | 25 194 . Guns 219 | 25 194 . Cannons . | . . . Explosions . | . . . Melee . | . . . Ramming . | . . . Kinetic 133 | 25 108 . Thermal 86 | . 86 . Explosive . | . . . Electromagnetic . | . . . Impact . | . . . Slashing . | . . . Piercing . | . . . Highest Corruption . | . . . Average Corruption . | . . . Corruption Purged . | . . . Corruption Blocked . | . . . Overload Shots . | . . . Overflow Damage . | . . . Projectiles . | . . . Explosions . | . . . Melee . | . . . Knockbacks . | . . . Impact . | . . . Kinetic . | . . . Secondary . | . . . Self-Inflicted Damage . | . . . Shots . | . . . Rammed . | . . . Targets Rammed . | . . . Kicked . | . . . Crushed . | . . . Highest Temperature 60 | . 60 . Average Temperature 33 | . 33 . Received Heat Transfer 63 | . 63 . Siege Activations . | . . . Robots Corrupted . | . . . Combat Hostiles . | . . . Parts Fried . | . . . Impact Corruptions . | . . . Robots Melted . | . . . Combat Hostiles . | . . . Parts Melted . | . . . Heat Transferred 200 | . 200 . Parts Sabotaged . | . . . Parts Stolen . | . . . Parts Stripped . | . . . Power Chain Reactions . | . . . Alert | -11 -10 -10 ------- Run | Yrd Mat Min Peak Influence 164 | 5 164 68 Initial 63 | . 3 63 Average 78 | 1 105 60 Maximum Alert Level . | . . . Low Security (%) 100 | 100 100 100 Level 1 . | . . . Level 2 . | . . . Level 3 . | . . . Level 4 . | . . . Level 5 . | . . . High Security . | . . . Max Security . | . . . Squads Dispatched 1 | . 1 . Investigation . | . . . Extermination . | . . . Reinforcement 1 | . 1 . Assault . | . . . Garrison . | . . . Intercept . | . . . Searches Triggered . | . . . Construction Impeded . | . . . Haulers Reinforced . | . . . Active Scanning Responses . | . . . Cargo Convoy Interrupts . | . . . Stealth | -11 -10 -10 --------- Run | Yrd Mat Min Distress Signals 1 | . 1 . Communications Jammed . | . . . Distress Signals . | . . . Times Spotted 15 | . 9 6 Peak Tracking Total 6 | . 4 6 Tactical Retreats . | . . . Traps | -11 -10 -10 ------- Run | Yrd Mat Min Traps Triggered . | . . . Indirectly . | . . . Trap Hack Attempts . | . . . Triggered . | . . . Disarmed . | . . . Reprogrammed . | . . . Reused . | . . . Traps Extracted . | . . . Installed . | . . . Triggered . | . . . Machines | -11 -10 -10 ---------- Run | Yrd Mat Min Machines Disabled . | . . . Max in Single Turn . | . . . Machines Repaired . | . . . Machines Dismantled . | . . . Machines Sabotaged . | . . . Overloaded Fab Kills . | . . . Hacking | -11 -10 -10 --------- Run | Yrd Mat Min Machines Accessed 2 | . 2 . Terminals 2 | . 2 . Fabricators . | . . . Repair Stations . | . . . Recycling Units . | . . . Scanalyzers . | . . . Garrison Access . | . . . Total Hacks 6 | . 6 . Successful 2 | . 2 . Failed 4 | . 4 . Catastrophic . | . . . Database Lockouts . | . . . Manual 6 | . 6 . Terminals 6 | . 6 . Fabricators . | . . . Repair Stations . | . . . Recycling Units . | . . . Scanalyzers . | . . . Garrison Access . | . . . Terminal Hacks 1 | . 1 . Zone Layout 1 | . 1 . Fabricator Hacks . | . . . Repair Station Hacks . | . . . Recycling Unit Hacks . | . . . Scanalyzer . | . . . Garrison Access Hacks . | . . . Unauthorized Hacks 1 | . 1 . Terminals 1 | . 1 . Botnet 1 | . 1 . Fabricators . | . . . Repair Stations . | . . . Recycling Units . | . . . Scanalyzers . | . . . Garrison Access . | . . . Data Cores Recovered . | . . . Used . | . . . Hacking Detections 2 | . 2 . Full Trace Events . | . . . Feedback Events . | . . . Feedback Blocked . | . . . Robot Schematics Acquired . | . . . Robots Built . | . . . Authchips . | . . . Time . | . . . Total Robot Build Rating . | . . . Part Schematics Acquired . | . . . Parts Built . | . . . Authchips . | . . . Time . | . . . Total Part Build Rating . | . . . Parts Repaired . | . . . Time . | . . . Parts Recycled . | . . . Recycled Matter . | . . . Retrieved Matter . | . . . Retrieved Components . | . . . Parts Scanalyzed . | . . . Part Schematics Acquired . | . . . Parts Damaged . | . . . Bothacking | -11 -10 -10 ------------ Run | Yrd Mat Min Used RIF Installer . | . . . Robots Hacked . | . . . Non-combat . | . . . Combat . | . . . Robot Hacks Applied . | . . . Relay Couplers Released . | . . . Fabnet Peak Effective % . | . . . Robots Rewired . | . . . Allies Hacked . | . . . Hacks Repelled . | . . . Allies | -11 -10 -10 -------- Run | Yrd Mat Min Total Allies . | . . . Largest Group . | . . . Highest-Rated Group . | . . . Highest-Rated Ally . | . . . Total Orders . | . . . Ally Attacks . | . . . Total Damage . | . . . Kills . | . . . Allies Corrupted . | . . . Allies Melted . | . . . Intel | -11 -10 -10 ------- Run | Yrd Mat Min Robot Analysis Total . | . . . Derelict Logs Recovered . | . . . Drone Launches . | . . . Drone Recoveries . | . . . Exploration | -11 -10 -10 ------------- Run | Yrd Mat Min Turns Passed 539 | 97 348 94 Spaces Moved 293 | 54 178 61 Core 15 | 5 . 10 Treads 278 | 49 178 51 Legs . | . . . Wheels . | . . . Hover . | . . . Flight . | . . . Fastest Speed 50 | 50 160 100 Average Speed 156 | 152 160 150 Slowest Speed 160 | 160 160 160 Overloaded Moves . | . . . Propulsion Burnouts . | . . . Robots Hopped . | . . . Cave-ins Triggered . | . . . Exploration Rate (%) 18 | 4 34 17 Regions Visited 2 Branch Regions 1 Pre-discovered Areas . | . . . Known Exits Taken . | . . . Unknown Exits Taken 2 | 1 1 . Scrap Searched . | . . . Spaces Dug . | . . . Terrain Destroyed . | . . . Melee . | . . . Projectile . | . . . AOE . | . . . Terrain Rammed . | . . . Walls Destroyed . | . . . Machines Disabled . | . . . Actions | -11 -10 -10 --------- Run | Yrd Mat Min Total 336 | 63 210 63 Wait . | . . . Move 291 | 53 177 61 Hop . | . . . Pick Up 4 | 1 3 . Fast Attach 8 | 6 2 . Attach . | . . . Detach 1 | . . 1 Swap 2 | . 2 . Drop 3 | . 3 . Fire 27 | 3 23 1 Melee . | . . . Ram . | . . . Kick . | . . . Crush . | . . . Escape Stasis . | . . . Rewire . | . . . Trap . | . . . Miscellaneous . | . . . Route ------- -11/Scrapyard -10/Materials -10/Mines History --------- Turn | Location | Event 5 | -11/Scrapyard | Discovered new exit (range 15) 98 | -11/Scrapyard | Entered Materials 313 | -10/Materials | Build established: Mutant 394 | -10/Materials | Discovered new exit (range 9) 446 | -10/Materials | Entered Mines 462 | -10/Mines | Assembled infested the area 530 | -10/Mines | Core integrity fell below 50% 533 | -10/Mines | Core integrity fell below 20% 540 | -10/Mines | Destroyed by S-10 Pest with Light Assault Rifle Last Messages --------------- GOAL=ESCAPE ALERT: Infestation in the mines, dispatching Demolisher response squad. Lgt. Cannon destroyed. T-07 Excavator destroyed. The unstable cave ceiling collapses. K-01 Serf collects debris. K-01 Serf destroyed. U-05 Engineer builds a Wall. The unstable cave ceiling collapses. R-06 Scavenger collects Wheel. Lgt. Treads destroyed. Imp. Terrain Scanner destroyed. The unstable cave ceiling collapses. Lgt. Assault Rifle destroyed. Lgt. Ion Engine destroyed. R-06 Scavenger collects Lgt. Ion Engine. The unstable cave ceiling collapses. R-06 Scavenger collects Wheel. The unstable cave ceiling collapses. Map ----- +----------------------------------------------------+ | ?????????????????????????????????????????????? | | ?????????????????????????????????????????????? | | ?????????????????????????????????????????????? | | ?????#???????????????????????????????????????? | | ?????????????????????????????????????????????? | | ?????????????#???????????????????????????????? | | ?????????????????????????????????????????????? | | ?????#???????????????????????????????????????? | | ??###????????????????????????????????????????? | | ??# ##??????????????????????????????????????? | | ??# ##?????????????????????????????????????? | | ??# #????????????##???????????????????????? | | ???# ##????????#???????????????????????????? | | ???# #?#?#???????##?? ????????????????????? | | ???# ##?????????????? ????????????????????? | | ???# ##????????????? #???????????????????? | | ???# #####?????#### ####????????????????? | | ???## ## ####??# # ##?####??????????? | | ????# ## #????# ## ####?????????? | | ???# ##### #????# % # ###???????? | | ?## #???## ##????# # ????????? | | ?# #???## ##?????? # # #?????????? | | ?# ##### ######?? # #?????????? | | ?# ### # #?????????? | | ?# ### # ## % # ?#?????????? | | ?## ### # @ # #%# #?????????? | | ??### ## s # ???????????? | | ???### ## ## s# # ##???????????? | | ?????####?#### # dr #?#?????????? | | ?????????????# d ""?????? | | ?????????????# # ""?????? | | ?????????#??## ## ""?????? | | ????????????## #?? ????? | | ??????????#??# # # ##???? ?????? | | ????#????????## # ######?????? ##?????? | | ??????????????# # ##?????????????##??????? | | ??????????????### #####???????????? ?????????? | | ????????????????# #?????????????? ???????????? | | ???????????????? ???? ??????????????????????? | | ???????????????? ???????????????????????????? | | ???????????????# ???????????????????????????? | | ???????????????? ???????????????????????????? | | ???????????????###?????????##????????????????? | | ?????????????????????????????????????????????? | | | | | | | | | | | | | +----------------------------------------------------+ Best States ------------- Heat Dissipation 25 Energy Generation 10 Energy Capacity 250 Matter Stores 300 Matter Capacity 300 Sight Range 16 Terrain Scan Range 16 Terrain Scan Density 10 Evasion (%) 40 Recoil Reduction 2 Item Schematics ----------------- None Robot Schematics ------------------ None Fabricated ------------ Nothing Alien Tech Used ----------------- None Achievements -------------- None Challenges ------------ None Game ------ Seed FlyingBiocellCanceller Manual? 0 Play Time 00:13:33 Cumulative 18.8 hours Start 2024.07.22 @ 22:10:25 End 2024.07.22 @ 22:24:39 Sessions 1 Manual Loads 0 Difficulty Rogue Special Mode None Game No. 17 Rogue 17 Adventurer 0 Explorer 0 Win Type - Total 0 Types 0/0/0/0/0/0/0/0/0 Lore% 14 Gallery% 22 Achievement% 16 Wizard Run 0 Options --------- Layout 1 ASCII 0 Keyboard 0 Movement Arrows Keybinds 0 Fullscreen 1 Font 16/Terminus Map View 55x38 Zoom Use 0% Tactical HUD 0 Map Filters NONE Filters NONE Steam 1 RUN: 07f81bd5-a6a1-4d98-852f-e7c27a22c82b